fUSD/lending_fUSD_20251109
["ID","MTS","AMOUNT","RATE_DAILY","PERIOD"]
[393444211,1762661446133,-158.34065,0.0002421,7]
[393444212,1762661446142,-151.0,0.0002421,7]
[393444213,1762661446152,-890.216318,0.0002421,7]
[393444214,1762661446161,-890.216318,0.0002421,7]
[393444215,1762661446174,-890.216318,0.0002421,7]
[393444216,1762661446184,-890.216318,0.0002421,7]
[393444217,1762661446194,-151.0,0.0002421,7]
[393444218,1762661446203,-245.775424,0.0002421,7]
[393444219,1762661446213,-233.11196,0.0002421,7]
[393444220,1762661446223,-513.435252,0.0002421,7]
[393444221,1762661446233,-233.11196,0.0002421,7]
[393444222,1762661446242,-513.435252,0.0002421,7]
[393444223,1762661446252,-233.11196,0.0002421,7]
[393444224,1762661446262,-513.435252,0.0002421,7]
[393444225,1762661446272,-159.813094,0.0002421,7]
[393444226,1762661446283,-233.11196,0.0002421,7]
[393444227,1762661446294,-513.435252,0.0002421,7]
[393444228,1762661446309,-151.0,0.0002421,7]
[393444229,1762661446318,-151.0,0.0002421,7]
[393444230,1762661446329,-151.0,0.0002421,7]
[393444231,1762661446338,-151.0,0.0002421,7]
[393444232,1762661446349,-151.0,0.0002421,7]
[393444233,1762661446359,-151.0,0.0002421,7]
[393444234,1762661446368,-151.0,0.0002421,7]
[393444235,1762661446380,-151.0,0.0002421,7]
[393444236,1762661446390,-151.0,0.0002421,7]
[393444237,1762661446400,-151.0,0.0002421,7]
[393444238,1762661446409,-151.0,0.0002421,7]
[393444239,1762661446419,-151.0,0.0002421,7]
[393444240,1762661446429,-151.0,0.0002421,7]
[393444241,1762661446439,-151.0,0.0002421,7]
[393444242,1762661446448,-151.0,0.0002421,7]
[393444243,1762661446459,-151.0,0.0002421,7]
[393444244,1762661446468,-151.0,0.0002421,7]
[393444245,1762661446478,-151.0,0.0002421,7]
[393444247,1762661446488,-151.0,0.0002421,7]
[393444248,1762661446497,-151.0,0.0002421,7]
[393444249,1762661446507,-151.0,0.0002421,7]
[393444250,1762661446516,-151.0,0.0002421,7]
[393444251,1762661446526,-151.0,0.0002421,7]
[393444252,1762661446535,-151.0,0.0002421,7]
[393444253,1762661446545,-151.0,0.0002421,7]
[393444254,1762661446555,-151.0,0.0002421,7]
[393444255,1762661446566,-151.0,0.0002421,7]
[393444256,1762661446575,-244.49106,0.0002421,7]
[393444257,1762661446585,-484.660239,0.00024293,5]
[393444258,1762661446595,-201.25645,0.00024293,5]
[393444259,1762661446604,-570.297092,0.00024293,5]
[393444260,1762661446614,-156.203306,0.000243,2]
[393444261,1762661446623,-484.660239,0.000243,2]
[393444262,1762661446634,-201.25645,0.000243,2]
[393444263,1762661446643,-570.297092,0.000243,2]
[393444264,1762661446654,-240.66,0.0002434,2]
[393444265,1762661446664,-4609.0,0.000245,2]
[393444266,1762661446674,-15480.59,0.000246,7]
[393444267,1762661446683,-478.20968403,0.000246,7]
[393444268,1762661446692,-591.41876586,0.0002465,2]
[393444269,1762661446701,-165.81359651,0.0002465,2]
[393444270,1762661446711,-155.0,0.00024658,2]
[393444271,1762661446720,-155.65988123,0.00024658,2]
[393444272,1762661446730,-1000.0,0.00024658,2]
[393444273,1762661446740,-1171.28,0.00024658,2]
[393444274,1762661446749,-549.32,0.00024665,2]
[393444275,1762661446763,-1098.42,0.00024665,2]
[393444276,1762661446778,-732.41486979,0.00024712,2]
[393444277,1762661446787,-478.20968403,0.000248,3]
[393444278,1762661446798,-151.0,0.000248,7]
[393444279,1762661446808,-151.0,0.000248,7]
[393444280,1762661446818,-151.0,0.000248,7]
[393444281,1762661446828,-151.0,0.000248,7]
[393444282,1762661446838,-151.0,0.000248,7]
[393444283,1762661446848,-151.0,0.000248,7]
[393444284,1762661446858,-151.0,0.000248,7]
[393444285,1762661446867,-151.0,0.000248,7]
[393444286,1762661446877,-151.0,0.000248,7]
[393444287,1762661446886,-151.0,0.000248,7]
[393444288,1762661446896,-179.978429,0.000248,7]
[393444289,1762661446906,-151.0,0.000248,7]
[393444290,1762661446916,-151.0,0.000248,7]
[393444291,1762661446927,-298.073251,0.000248,7]
[393444292,1762661446940,-151.0,0.000248,7]
[393444293,1762661446951,-151.0,0.000248,7]
[393444294,1762661446962,-166.384495,0.000248,7]
[393444295,1762661446974,-240.113776,0.000248,7]
[393444296,1762661446985,-151.0,0.000248,7]
[393444297,1762661446997,-151.0,0.000248,7]
[393444298,1762661447008,-166.124503,0.000248,7]
[393444299,1762661447019,-151.792528,0.000248,7]
[393444300,1762661447030,-151.0,0.000248,7]
[393444301,1762661447046,-153.321094,0.000248,7]
[393444302,1762661447060,-151.0,0.000248,7]
[393444303,1762661447072,-151.0,0.000248,7]
[393444304,1762661447084,-151.0,0.000248,7]
[393444305,1762661447097,-151.0,0.000248,7]
[393444306,1762661447109,-151.0,0.000248,7]
[393444307,1762661447121,-151.0,0.000248,7]
[393444308,1762661447143,-151.0,0.000248,7]
[393444309,1762661447155,-151.0,0.000248,7]
[393444310,1762661447168,-151.0,0.000248,7]
[393444311,1762661447182,-151.0,0.000248,7]
[393444312,1762661447194,-151.0,0.000248,7]
[393444313,1762661447208,-151.0,0.000248,7]
[393444314,1762661447220,-151.0,0.000248,7]
[393444315,1762661447233,-151.0,0.000248,7]
[393444316,1762661447247,-151.0,0.000248,7]
[393444317,1762661447259,-151.0,0.000248,7]
[393444318,1762661447271,-151.0,0.000248,7]
[393444319,1762661447283,-151.0,0.000248,7]
[393444320,1762661447295,-159.665485,0.000248,7]
[393444321,1762661447309,-151.0,0.000248,7]
[393444322,1762661447320,-151.0,0.000248,7]
[393444323,1762661447332,-151.0,0.000248,7]
[393444324,1762661447350,-151.0,0.000248,7]
[393444325,1762661447362,-151.0,0.000248,7]
[393444326,1762661447373,-151.0,0.000248,7]
[393444327,1762661447385,-151.0,0.000248,7]
[393444328,1762661447398,-151.0,0.000248,7]
[393444329,1762661447410,-151.0,0.000248,7]
[393444330,1762661447421,-158.935145,0.000248,7]
[393444331,1762661447432,-157.540143,0.000248,7]
[393444332,1762661447444,-151.0,0.000248,7]
[393444333,1762661447457,-151.0,0.000248,7]
[393444334,1762661447468,-162.247724,0.000248,7]
[393444335,1762661447479,-151.0,0.000248,7]
[393444336,1762661447490,-212.837481,0.000248,7]
[393444337,1762661447501,-212.837481,0.000248,7]
[393444338,1762661447513,-151.0,0.000248,7]
[393444339,1762661447524,-212.837481,0.000248,7]
[393444340,1762661447534,-151.0,0.000248,7]
[393444341,1762661447545,-212.837481,0.000248,7]
[393444342,1762661447556,-151.0,0.000248,7]
[393444343,1762661447567,-151.0,0.000248,7]
[393444344,1762661447578,-151.0,0.000248,7]
[393444345,1762661447588,-151.0,0.000248,7]
[393444346,1762661447599,-206.496713,0.000248,7]
[393444347,1762661447760,-206.496713,0.000248,7]
[393444348,1762661447771,-206.496713,0.000248,7]
[393444349,1762661447781,-206.496713,0.000248,7]
[393444350,1762661447790,-151.0,0.000248,7]
[393444351,1762661447799,-214.43224,0.000248,7]
[393444352,1762661447809,-152.441528,0.000248,7]
[393444353,1762661447819,-214.43224,0.000248,7]
[393444354,1762661447829,-214.43224,0.000248,7]
[393444355,1762661447838,-214.43224,0.000248,7]
[393444356,1762661447852,-151.0,0.000248,7]
[393444357,1762661447862,-181.665505,0.000248,7]
[393444358,1762661447872,-181.665505,0.000248,7]
[393444359,1762661447886,-181.665505,0.000248,7]
[393444360,1762661447896,-181.665505,0.000248,7]
[393444361,1762661447905,-151.0,0.000248,7]
[393444362,1762661447915,-151.0,0.000248,7]
[393444363,1762661447926,-151.0,0.000248,7]
[393444364,1762661447936,-151.0,0.000248,5]
[393444365,1762661447946,-151.0,0.000248,7]
[393444366,1762661447957,-151.0,0.000248,7]
[393444367,1762661447968,-151.0,0.000248,7]
[393444368,1762661447978,-152.599887,0.000248,7]
[393444369,1762661447988,-151.0,0.000248,7]
[393444370,1762661447998,-151.0,0.000248,7]
[393444371,1762661448009,-151.0,0.000248,7]
[393444372,1762661448019,-151.0,0.000248,7]
[393444373,1762661448030,-151.0,0.000248,7]
[393444374,1762661448040,-151.0,0.000248,7]
[393444375,1762661448052,-153.672685,0.000248,7]
[393444376,1762661448063,-151.0,0.000248,7]
[393444377,1762661448075,-151.0,0.000248,7]
[393444378,1762661448085,-151.0,0.000248,7]
[393444379,1762661448094,-170.193313,0.000248,7]
[393444380,1762661448104,-151.0,0.000248,7]
[393444381,1762661448114,-151.0,0.000248,7]
[393444382,1762661448124,-151.0,0.000248,7]
[393444383,1762661448138,-151.0,0.000248,7]
[393444384,1762661448148,-151.0,0.000248,7]
[393444385,1762661448157,-151.0,0.000248,7]
[393444386,1762661448168,-151.0,0.000248,7]
[393444387,1762661448178,-151.0,0.000248,7]
[393444388,1762661448188,-151.0,0.000248,7]
[393444389,1762661448197,-151.0,0.000248,7]
[393444390,1762661448207,-151.0,0.000248,7]
[393444391,1762661448218,-151.0,0.000248,7]
[393444392,1762661448228,-290.456169,0.000248,7]
[393444393,1762661448238,-153.908026,0.000248,7]
[393444394,1762661448252,-152.608705,0.000248,7]
[393444395,1762661448261,-153.831829,0.000248,7]
[393444396,1762661448271,-151.0,0.000248,7]
[393444397,1762661448282,-151.0,0.000248,7]
[393444398,1762661448291,-151.0,0.000248,7]
[393444399,1762661448302,-151.0,0.000248,7]
[393444400,1762661448315,-151.0,0.000248,7]
[393444401,1762661448325,-271.006298,0.000248,7]
[393444402,1762661448334,-151.0,0.000248,7]
[393444403,1762661448344,-151.0,0.000248,7]
[393444404,1762661448355,-151.0,0.000248,7]
[393444405,1762661448365,-151.0,0.000248,7]
[393444406,1762661448378,-151.0,0.000248,7]
[393444407,1762661448388,-151.0,0.000248,7]
[393444408,1762661448399,-153.227742,0.000248,7]
[393444409,1762661448409,-153.227742,0.000248,7]
[393444410,1762661448419,-151.0,0.000248,7]
[393444411,1762661448429,-153.227742,0.000248,7]
[393444412,1762661448439,-153.227742,0.000248,7]
[393444413,1762661448449,-165.304444,0.000248,7]
[393444414,1762661448458,-151.0,0.000248,7]
[393444415,1762661448469,-151.0,0.000248,7]
[393444416,1762661448479,-187.260727,0.000248,7]
[393444417,1762661448489,-187.260727,0.000248,7]
[393444418,1762661448498,-187.260727,0.000248,7]
[393444419,1762661448508,-187.260727,0.000248,7]
[393444420,1762661448518,-151.0,0.000248,7]
[393444421,1762661448528,-151.0,0.000248,7]
[393444422,1762661448538,-151.0,0.000248,7]
[393444423,1762661448548,-151.0,0.000248,7]
[393444424,1762661448558,-151.0,0.000248,7]
[393444425,1762661448567,-151.0,0.000248,7]
[393444426,1762661448578,-151.0,0.000248,7]
[393444427,1762661448588,-151.0,0.000248,7]
[393444428,1762661448598,-166.837852,0.000248,7]
[393444429,1762661448608,-274.681251,0.000248,7]
[393444430,1762661448617,-151.0,0.000248,7]
[393444431,1762661448627,-151.0,0.000248,7]
[393444432,1762661448637,-151.0,0.000248,7]
[393444433,1762661448647,-151.0,0.000248,7]
[393444434,1762661448657,-151.0,0.000248,7]
[393444435,1762661448668,-182980.48178006,0.000248,2]
[393444436,1762661448678,-183.161086,0.000248,7]
[393444437,1762661448688,-166.763674,0.000248,7]
[393444438,1762661448698,-151.0,0.000248,7]
[393444439,1762661448708,-151.0,0.000248,7]
[393444440,1762661448719,-151.0,0.000248,7]
[393444441,1762661448730,-183.161086,0.000248,7]
[393444442,1762661448740,-250.746195,0.000248,7]
[393444443,1762661448749,-151.0,0.000248,7]
[393444444,1762661448759,-183.161086,0.000248,7]
[393444445,1762661448768,-183.161086,0.000248,7]
[393444446,1762661448778,-160.214749,0.000248,7]
[393444447,1762661448787,-151.0,0.000248,7]
[393444448,1762661448796,-151.0,0.000248,7]
[393444449,1762661448806,-419.306524,0.000248,7]
[393444450,1762661448819,-279.738326,0.000248,7]
[393444451,1762661448829,-419.306524,0.000248,7]
[393444452,1762661448838,-151.0,0.000248,7]
[393444453,1762661448848,-279.738326,0.000248,7]
[393444454,1762661448859,-419.306524,0.000248,7]
[393444455,1762661448870,-279.738326,0.000248,7]
[393444456,1762661448881,-419.306524,0.000248,7]
[393444457,1762661448891,-151.0,0.000248,7]
[393444458,1762661448900,-279.738326,0.000248,7]
[393444459,1762661448910,-156.109993,0.000248,7]
[393444460,1762661448920,-206.079177,0.000248,7]
[393444461,1762661448930,-151.0,0.000248,7]
[393444462,1762661448939,-576172.85841593,0.000248,3]
[393444463,1762661449337,-495.37459953,0.00021918,2]
[393444464,1762661449476,-4504.62540047,0.00021918,2]
[393444465,1762661449487,-57410.44918007,0.000248,3]
[393444466,1762661449501,-492.357239,0.000248,7]
[393444467,1762661449511,-492.357239,0.000248,7]
[393444468,1762661449522,-151.0,0.000248,7]
[393444469,1762661449531,-492.357239,0.000248,7]
[393444470,1762661449541,-151.0,0.000248,7]
[393444471,1762661449550,-151.0,0.000248,7]
[393444472,1762661449560,-151.0,0.000248,7]
[393444473,1762661449570,-492.357239,0.000248,7]
[393444474,1762661449580,-203.053271,0.000248,7]
[393444475,1762661449590,-151.0,0.000248,7]
[393444476,1762661449599,-181.280718,0.000248,7]
[393444477,1762661449608,-151.0,0.000248,7]
[393444478,1762661449618,-900.184366,0.000248,7]
[393444479,1762661449631,-181.280718,0.000248,7]
[393444480,1762661449643,-151.0,0.000248,7]
[393444481,1762661449654,-900.184366,0.000248,7]
[393444482,1762661449664,-181.280718,0.000248,7]
[393444483,1762661449674,-151.0,0.000248,7]
[393444484,1762661449684,-181.280718,0.000248,7]
[393444485,1762661449694,-900.184366,0.000248,7]
[393444486,1762661449704,-151.0,0.000248,7]
[393444487,1762661449714,-151.0,0.000248,7]
[393444488,1762661449723,-155.092132,0.000248,7]
[393444489,1762661449733,-174.577242,0.000248,7]
[393444490,1762661449742,-900.184366,0.000248,7]
[393444491,1762661449752,-151.0,0.000248,7]
[393444492,1762661449762,-151.0,0.000248,7]
[393444493,1762661449775,-174.577242,0.000248,7]
[393444494,1762661449790,-151.0,0.000248,7]
[393444495,1762661449800,-174.577242,0.000248,7]
[393444496,1762661449809,-151.0,0.000248,7]
[393444497,1762661449819,-174.577242,0.000248,7]
[393444498,1762661449829,-151.0,0.000248,7]
[393444499,1762661449838,-153.743889,0.000249,3]
[393444500,1762661449847,-156.203306,0.000249,3]
[393444501,1762661449857,-484.660239,0.000249,3]
[393444502,1762661449866,-201.25645,0.000249,3]
[393444503,1762661449877,-570.297092,0.000249,3]
[393444504,1762661449887,-151.0,0.000249,7]
[393444505,1762661449896,-151.0,0.000249,7]
[393444506,1762661449905,-151.0,0.000249,7]
[393444507,1762661449915,-151.0,0.000249,7]
[393444508,1762661449925,-151.0,0.000249,7]
[393444509,1762661449934,-151.0,0.000249,7]
[393444510,1762661449944,-151.0,0.000249,7]
[393444511,1762661449954,-151.0,0.000249,7]
[393444512,1762661449965,-187.140921,0.000249,7]
[393444513,1762661449974,-151.0,0.000249,7]
[393444514,1762661449984,-251.368815,0.000249,7]
[393444515,1762661449993,-151.0,0.000249,7]
[393444516,1762661450002,-151.0,0.000249,7]
[393444517,1762661450012,-151.0,0.000249,7]
[393444518,1762661450021,-151.0,0.000249,7]
[393444519,1762661450031,-159.998867,0.000249,7]
[393444520,1762661450040,-151.0,0.000249,7]
[393444521,1762661450050,-151.0,0.000249,7]
[393444522,1762661450060,-448.418305,0.000249,7]
[393444523,1762661450069,-151.0,0.000249,7]
[393444524,1762661450079,-151.0,0.000249,7]
[393444525,1762661450088,-197.193265,0.000249,7]
[393444526,1762661450098,-448.418305,0.000249,7]
[393444527,1762661450107,-151.0,0.000249,7]
[393444528,1762661450117,-151.0,0.000249,7]
[393444529,1762661450127,-448.418305,0.000249,7]
[393444530,1762661450137,-151.0,0.000249,7]
[393444531,1762661450147,-151.0,0.000249,7]
[393444532,1762661450156,-448.418305,0.000249,7]
[393444533,1762661450166,-151.0,0.000249,7]
[393444534,1762661450175,-151.0,0.000249,7]
[393444535,1762661450184,-151.0,0.000249,7]
[393444536,1762661450194,-478.20968403,0.000249,7]
[393444537,1762661450204,-151.0,0.000249,7]
[393444538,1762661450214,-151.0,0.000249,7]
[393444539,1762661450224,-151.0,0.000249,7]
[393444540,1762661450233,-151.0,0.000249,7]
[393444541,1762661450243,-151.0,0.000249,7]
[393444542,1762661450253,-151.0,0.000249,7]
[393444543,1762661450263,-151.0,0.000249,7]
[393444544,1762661450273,-151.0,0.000249,7]
[393444545,1762661450285,-282.215836,0.000249,7]
[393444546,1762661450299,-282.215836,0.000249,7]
[393444547,1762661450314,-282.215836,0.000249,7]
[393444548,1762661450324,-282.215836,0.000249,7]
[393444549,1762661450333,-151.0,0.000249,7]
[393444550,1762661450343,-8685.2580649,0.000249,3]
[393444551,1762661450357,-400.0,0.000249,3]
[393444552,1762661450428,-151.0,0.000248,7]
[393444553,1762661450438,-740.78268854,0.000249,3]
[393444554,1762661450455,-608.21731146,0.000249,3]
[393444555,1762661450467,-41118.48376364,0.000249,3]
[393444556,1762661455431,300.0,0.00012795,2]
[393444557,1762661455744,300.0,0.00012915,2]
[393444558,1762661455793,300.0,0.0001276,2]
[393444559,1762661455850,300.0,0.00012908,2]
[393444560,1762661455906,300.0,0.00012984,2]
[393444561,1762661455965,300.0,0.00012984,2]
[393444562,1762661456013,300.0,0.00012808,2]
[393444563,1762661575059,207.21,0.00010878,2]
[393444564,1762661575264,207.21,0.00011428,2]
[393444565,1762661575468,207.21,0.00011979,2]
[393444566,1762661575857,207.21,0.00012529,2]
[393444567,1762661576064,207.21,0.00013079,2]
[393444568,1762661576275,207.21,0.00013629,2]
[393444569,1762661576510,207.21,0.00014179,2]
[393444570,1762661576707,207.21,0.00014729,2]
[393444571,1762661576903,207.21,0.00015279,2]
[393444572,1762661577088,207.21,0.00015829,2]
[393444573,1762661577697,207.21,0.00016379,2]
[393444574,1762661598090,500.0,0.00039201,120]
[393444575,1762661598152,500.0,0.00039201,120]
[393444576,1762661598362,500.0,0.00039201,120]
[393444577,1762661598593,500.0,0.00039201,120]
[393444578,1762661598852,500.0,0.00039201,120]
[393444579,1762661599093,500.0,0.00039201,120]
[393444580,1762661599334,209.12380433,0.00039201,120]
[393444581,1762662050010,279.62869855,0.00039137,120]
[393444583,1762662412149,13383.02551804,0.000162,5]
[393444584,1762662454055,-301.91002093,0.000166,2]
[393444585,1762662459480,-54.77794353,0.000166,2]
[393444586,1762662462069,2194.61027828,0.00013,2]
[393444589,1762662507300,266.09014943,0.000107,2]
[393444590,1762662507571,503.17010096,0.000154,2]
[393444591,1762662513818,6926.58358427,0.00015,3]
[393444592,1762662513841,10000.01,0.00015,3]
[393444593,1762662513864,10000.01,0.00015,3]
[393444594,1762662513885,10000.01,0.00015,3]
[393444595,1762662513906,10000.01,0.00015,3]
[393444596,1762662513929,10000.01,0.00015,3]
[393444597,1762662513950,10000.01,0.00015,3]
[393444598,1762662513972,10000.01,0.00015,3]
[393444599,1762662513995,10000.01,0.00015,3]
[393444600,1762662514016,10000.01,0.00015,3]
[393444601,1762662514042,17412.6522155,0.00015,3]
[393444608,1762662631742,-150.0,0.00016915,2]
[393444610,1762662631755,-207.21,0.00016929,2]
[393444612,1762662631764,-250.0,0.00016958,2]
[393444614,1762662631774,-250.0,0.00017,2]
[393444616,1762662631785,-250.0,0.00017034,2]
[393444618,1762662631794,-1472.12,0.00017042,2]
[393444619,1762662631803,-3378.30064858,0.000173,2]
[393444620,1762662631812,-847.26740155,0.00017378,2]
[393444621,1762662631823,-1000.0,0.00017465,2]
[393444622,1762662631832,-207.21,0.00017479,2]
[393444623,1762662631842,-1200.0,0.00017521,2]
[393444624,1762662631855,-409.24,0.00017555,2]
[393444625,1762662631866,-752.75,0.00017555,3]
[393444626,1762662631875,-1200.0,0.00017563,2]
[393444627,1762662631885,-300.0,0.00017563,2]
[393444628,1762662631895,-500.0,0.00017564,2]
[393444629,1762662631904,-394.54182978,0.00017564,2]
[393444630,1762662631913,-500.0,0.00017564,2]
[393444631,1762662631923,-569.08359772,0.00017564,2]
[393444632,1762662631932,-341.00928863,0.00017564,2]
[393444633,1762662631941,-198324.2,0.00017565,2]
[393444634,1762662631950,-500.0,0.00017573,2]
[393444635,1762662631959,-166.66,0.00017622,2]
[393444636,1762662631969,-227.0,0.0001764,2]
[393444637,1762662631979,-227.0,0.00017799,2]
[393444638,1762662631988,-165.29540307,0.00017827,2]
[393444639,1762662631997,-409.24,0.00017829,2]
[393444640,1762662632007,-165.29540301,0.00017841,2]
[393444641,1762662632016,-500.0,0.00017849,2]
[393444642,1762662632026,-165.29540301,0.00017854,2]
[393444643,1762662632035,-165.29540301,0.00017868,2]
[393444644,1762662632047,-165.29540301,0.00017881,2]
[393444645,1762662632056,-227.0,0.00017894,2]
[393444646,1762662632066,-165.29540301,0.00017895,2]
[393444647,1762662632075,-165.29540301,0.00017908,2]
[393444648,1762662632086,-207.65642755,0.00017921,2]
[393444649,1762662632095,-484.3214377,0.00017921,2]
[393444651,1762662632105,-164.38150426,0.00017921,2]
[393444653,1762662632113,-1077.4367122,0.00017922,2]
[393444655,1762662632122,-29578.50289836,0.00017922,2]
[393444657,1762662632132,-1287.0363364,0.00017922,2]
[393444659,1762662632142,-381.84683927,0.00017922,2]
[393444661,1762662632151,-544.84730256,0.00017922,2]
[393444663,1762662632160,-165.29540301,0.00017922,2]
[393444666,1762662632169,-2545.04154666,0.00017922,2]
[393444669,1762662632178,-63501.3861141,0.00017926,2]
[393444672,1762662632187,-227.0,0.00017928,2]
[393444676,1762662632197,-500.0,0.00017973,2]
[393444679,1762662632206,-128687.79843432,0.00017973,2]
[393444682,1762662632218,-575.75,0.00017973,2]
[393444686,1762662632230,-252.73500001,0.00017973,2]
[393444687,1762662632251,-8136.90069169,0.00017973,2]
[393444688,1762662632262,-1219.05545319,0.00017973,2]
[393444691,1762662632273,-453.90225497,0.00017973,2]
[393444694,1762662632294,-888.14621228,0.00017973,2]
[393444696,1762662632305,-712.88799562,0.00017973,2]
[393444698,1762662632315,-340.80627059,0.00017973,2]
[393444700,1762662632326,-306.6,0.00017973,2]
[393444705,1762662632346,-7101.18317895,0.00017973,2]
[393444707,1762662632361,-3345.55451502,0.00017973,2]
[393444710,1762662632376,-1895.5,0.00017973,2]
[393444713,1762662637758,-427.7302356,0.00017922,3]
[393444715,1762662637769,-4597.70737116,0.00017973,2]
[393444716,1762662637781,-354.70252379,0.00017973,2]
[393444717,1762662637815,-525.60054405,0.00017973,2]
[393444718,1762662637827,-459196.46137763,0.00017973,2]
[393444719,1762662637837,-83284.41675423,0.00017973,2]
[393444720,1762662637846,-151.0,0.00017989,2]
[393444721,1762662637856,-151.0,0.00017989,2]
[393444722,1762662637865,-151.0,0.00017989,2]
[393444723,1762662637875,-151.0,0.00017989,2]
[393444724,1762662637884,-151.0,0.00017989,2]
[393444725,1762662637895,-151.0,0.00017989,2]
[393444726,1762662637904,-151.0,0.00017989,2]
[393444727,1762662637914,-151.0,0.00017989,2]
[393444728,1762662637923,-151.0,0.00017989,2]
[393444729,1762662637932,-151.0,0.00017989,2]
[393444730,1762662637941,-151.0,0.00017989,2]
[393444731,1762662637950,-151.0,0.00017989,2]
[393444732,1762662637960,-151.0,0.00017989,2]
[393444733,1762662637970,-173.00943357,0.00017989,2]
[393444734,1762662637980,-151.0,0.00017989,2]
[393444736,1762662637990,-151.0,0.00017989,2]
[393444737,1762662637999,-15408.2449459,0.00017999,2]
[393444738,1762662638009,-835.48,0.00018,7]
[393444739,1762662638018,-2516735.4290698,0.00018,2]
[393444740,1762662638035,-548.24505163,0.00018,2]
[393444747,1762662639807,-555.4,0.00018,2]
[393444748,1762662639818,-789.95999999,0.00018,2]
[393444749,1762662639864,-727.15872492,0.00018,2]
[393444750,1762662639876,-277.38229537,0.00018,2]
[393444751,1762662639887,-2041.567594,0.00018,2]
[393444752,1762662639900,-1258.58120008,0.00018,2]
[393444753,1762662639912,-5004.33853936,0.00018,2]
[393444754,1762662639925,-452.20582707,0.00018,2]
[393444755,1762662640141,-823352.59632944,0.00018,2]
[393444767,1762662643104,-755.22386078,0.00017465,2]
[393444768,1762662643116,-455.83943095,0.00017465,2]
[393444769,1762662643127,-5853.58418843,0.00017465,2]
[393444770,1762662643138,-399.79800001,0.00017465,2]
[393444771,1762662643166,-7265.0,0.00017465,2]
[393444778,1762662646072,-3276.41768724,0.00017465,2]
[393444779,1762662646132,-3142.16033236,0.00017465,2]
[393444780,1762662646302,-1088.82496,0.00017465,2]
[393444781,1762662646361,-44890.62750016,0.00017465,2]
[393444788,1762662995094,622.73543843,0.00039164,120]
[393444789,1762663114313,-152.87,0.00016863,2]
[393444790,1762663114347,-170.27333368,0.00016871,2]
[393444791,1762663118261,-79.72666632,0.00016871,2]
[393444792,1762663118284,-193.60214589,0.00016879,2]
[393444793,1762663118423,500.0,0.0003917,120]
[393444794,1762663118671,500.0,0.0003917,120]
[393444795,1762663118906,401.32774192,0.0003917,120]